bitfinex-derivatives/quotes_ETHF0:USTF0_20250923
["timestamp","ask_amount","ask_price","bid_price","bid_amount"]
[1758643275676,1.06467128,4183.4,4183.3,0.79118]
[1758643275881,1.70754128,4183.4,4183.3,0.3612]
[1758643276071,1.70754128,4183.4,4183.3,0.79118]
[1758643276372,1.06467128,4183.4,4183.3,0.79118]
[1758643276576,0.3346,4183.4,4183.3,0.90408]
[1758643276776,0.3346,4183.4,4183.3,4.11188]
[1758643277375,0.3346,4183.4,4183.3,4.35388]
[1758643278376,3.2078,4183.9,4183.4,0.1129]
[1758643278675,0.4579,4184.0,4183.9,0.90402]
[1758643278882,0.1233,4184.5,4183.9,1.14602]
[1758643279075,0.6819,4184.5,4184.4,4.11177]
[1758643279275,1.18816273,4184.5,4184.4,4.11177]
[1758643279582,0.4579,4184.5,4184.4,4.35377]
[1758643279983,0.9014,4185.0,4184.9,0.79102]
[1758643280285,1.40759739,4185.0,4184.9,0.79102]
[1758643281174,0.4645,4185.0,4184.9,4.11172]
[1758643281680,0.8006,4185.4,4185.3,0.79098]
[1758643281874,1.06425033,4185.4,4185.3,0.79098]
[1758643282078,1.27715033,4185.4,4185.3,0.79098]
[1758643282282,0.5586,4185.4,4185.3,0.79098]
[1758643283479,0.7715,4185.4,4185.3,0.3612]
[1758643283684,0.6778,4185.0,4184.9,3.99322]
[1758643283881,0.6778,4185.0,4184.9,4.23522]
[1758643284484,0.8991,4185.0,4184.9,3.3856]
[1758643284678,0.8991,4185.0,4184.0,1.07477]
[1758643284679,1.32896,4184.5,4184.4,3.2078]
[1758643284974,1.32896,4184.5,4183.0,0.1111]
[1758643284975,0.3326,4184.2,4184.1,0.7855]
[1758643285177,0.4547,4184.5,4184.4,0.42987]
[1758643285380,0.4547,4184.5,4184.4,0.78547]
[1758643285577,0.4547,4184.5,4184.4,0.89657]
[1758643285774,0.3326,4185.2,4185.1,0.4298]
[1758643285972,0.3326,4185.2,4185.1,3.9932]
[1758643286387,0.5557,4185.2,4185.1,3.9932]
[1758643286682,0.3326,4185.2,4185.1,4.1043]
[1758643288185,0.777,4185.2,4185.1,3.9932]
[1758643288385,0.777,4185.2,4185.1,3.5634]
[1758643288586,0.777,4185.2,4185.1,3.6286]
[1758643288786,0.777,4185.2,4185.1,3.4508]
[1758643289787,0.777,4185.2,4185.1,0.243]
[1758643290285,1.20679,4185.2,4185.1,0.243]
[1758643290989,1.20679,4185.2,4185.1,0.6728]
[1758643291282,0.777,4185.2,4184.9,0.42981]
[1758643291487,0.5539,4184.8,4184.6,3.2078]
[1758643291785,1.20684,4184.7,4184.6,3.63765]
[1758643292180,1.20684,4184.7,4184.6,3.81545]
[1758643292376,0.42986,4184.5,4184.4,0.42987]
[1758643292683,0.8991,4184.5,4184.4,0.60767]
[1758643293182,1.32896,4184.5,4184.4,0.60767]
[1758643293487,0.8991,4184.5,4184.4,0.78547]
[1758643294783,1.32896,4184.5,4184.4,0.78547]
[1758643294976,0.87427,4184.4,4184.3,0.243]
[1758643295179,0.3326,4184.3,4184.1,3.2078]
[1758643295485,1.19677,4184.5,4183.2,1.07498]
[1758643295486,0.777,4183.7,4183.6,3.99335]
[1758643295784,0.5557,4183.7,4183.6,4.23635]
[1758643296582,1.20694,4183.7,4183.6,4.23635]
[1758643296888,0.777,4183.7,4183.6,4.23635]
[1758643298285,1.20694,4183.7,4183.6,4.23635]
[1758643298493,0.777,4183.7,4183.6,4.23635]
[1758643298691,0.5557,4183.7,4183.6,4.23635]
[1758643298887,0.5557,4183.7,4183.6,4.34745]
[1758643298888,0.3326,4183.7,4183.6,4.34745]
[1758643299789,0.55207,4183.5,4183.4,0.60777]
[1758643299985,0.55207,4183.5,4183.4,0.85077]
[1758643299986,1.32907,4183.5,4183.4,0.85077]
[1758643300291,1.32907,4183.5,4183.4,1.02857]
[1758643300691,0.8991,4183.5,4183.4,1.02857]
[1758643300896,0.8991,4183.5,4183.2,0.42998]
[1758643300897,0.42999,4183.3,4183.2,0.42998]
[1758643301086,1.20699,4183.2,4183.1,3.2078]
[1758643301390,0.1221,4183.5,4183.4,0.42997]
[1758643301585,0.1221,4183.5,4183.4,0.78557]
[1758643301786,0.3452,4183.5,4183.4,0.78557]
[1758643301986,0.6778,4183.5,4183.4,0.78557]
[1758643302991,1.32906,4183.5,4183.4,0.1778]
[1758643303295,0.777,4183.3,4183.2,0.243]
[1758643303488,0.777,4183.3,4183.2,0.4208]
[1758643303993,1.20698,4183.3,4183.2,0.85079]
[1758643304494,0.777,4183.3,4183.2,0.85079]
[1758643304993,0.777,4183.3,4183.2,1.02859]
[1758643305489,0.777,4183.3,4182.1,2.34443282]
[1758643305490,0.5539,4183.2,4182.7,0.43004]
[1758643305692,0.1221,4183.0,4182.6,0.43006]
[1758643305890,0.1221,4183.0,4182.5,3.2078]
[1758643305891,0.777,4182.7,4182.5,3.2078]
[1758643306095,0.777,4182.6,4182.5,3.2078]
[1758643306290,1.20706,4182.6,4182.5,3.63787]
[1758643306598,0.777,4182.6,4182.5,3.81567]
[1758643306897,0.777,4182.6,4182.5,3.63787]
[1758643307098,0.777,4182.6,4182.5,3.81567]
[1758643307797,1.20706,4182.6,4182.5,3.63787]
[1758643308095,0.777,4182.6,4182.5,3.81567]
[1758643308295,0.777,4182.6,4182.5,3.99347]
[1758643312600,0.5557,4182.6,4182.5,3.99347]
[1758643312791,0.777,4182.6,4182.5,3.99347]
[1758643312992,0.5557,4182.6,4182.5,3.99347]
[1758643314698,0.7636,4182.6,4182.5,3.99387]
[1758643315388,0.7636,4182.6,4182.5,4.23587]
[1758643318801,1.19366,4182.6,4182.5,3.2078]
[1758643319006,0.727,4182.3,4182.2,0.6083]
[1758643319198,0.727,4182.3,4182.2,0.8503]
[1758643319398,0.727,4182.3,4182.2,1.0285]
[1758643319803,0.5191,4182.3,4182.2,1.1399]
[1758643320305,0.3092,4182.3,4182.2,1.1399]
[1758643321198,0.5191,4182.3,4182.2,1.0285]
[1758643321399,3.7269,4182.9,4182.8,0.78643]
[1758643322905,4.36482,4182.9,4182.8,0.43004]
[1758643323108,0.8567,4182.5,4182.4,0.60828]
[1758643323310,0.8567,4182.5,4182.4,1.02848]
[1758643323606,1.28677,4182.5,4182.4,0.78648]
[1758643323807,1.28677,4182.5,4182.4,1.02848]
[1758643324409,0.8567,4182.5,4182.4,1.02848]
[1758643325105,0.8567,4182.5,4182.3,0.43009]
[1758643325106,0.43008,4182.4,4182.3,0.43009]
[1758643325312,0.727,4182.1,4182.0,3.2078]
[1758643325506,1.15711,4182.1,4182.0,3.2078]
[1758643325706,1.15711,4182.1,4182.0,3.63792]
[1758643326604,0.2099,4181.6,4181.5,3.5642]
[1758643326808,0.727,4181.6,4181.5,4.23637]
[1758643327009,0.727,4181.6,4181.5,3.99437]
[1758643327208,0.727,4181.6,4181.5,4.23637]
[1758643327713,0.5191,4181.6,4181.5,4.34777]
[1758643327907,0.3092,4181.6,4181.5,4.34777]
[1758643330006,0.1297,4182.0,4181.9,0.43013]
[1758643330314,0.3396,4182.0,4181.9,0.78653]
[1758643330709,1.58506153,4182.0,4181.9,0.3564]
[1758643330915,1.79296153,4182.0,4181.9,0.3564]
[1758643332217,1.36284153,4182.0,4181.9,0.78653]
[1758643332716,1.79296153,4182.0,4181.9,0.78653]
[1758643332917,1.79296153,4182.0,4181.9,0.3564]
[1758643333213,0.2099,4181.1,4181.0,3.5642]
[1758643333416,1.15721,4181.1,4181.0,3.2078]
[1758643333615,0.4296,4180.9,4180.8,0.242]
[1758643333813,0.5362,4180.8,4180.7,0.4213]
[1758643334120,0.7559,4180.8,4180.7,0.85155]
[1758643334710,0.7559,4180.8,4180.7,0.78885]
[1758643334915,0.7559,4180.8,4180.7,1.03085]
[1758643335217,0.7559,4180.6,4180.5,3.88007]
[1758643336422,0.7559,4180.6,4180.5,4.05937]
[1758643338216,0.7559,4180.6,4180.5,3.6291]
[1758643338428,0.7559,4180.6,4180.5,4.05937]
[1758643338717,1.18616,4180.6,4180.5,4.05937]
[1758643339422,1.18616,4180.6,4180.5,3.88007]
[1758643340024,0.7559,4180.6,4180.5,3.88007]
[1758643340324,0.7559,4180.6,4180.5,3.99667]
[1758643340826,0.3335,4180.6,4180.5,4.10877]
[1758643341319,0.5362,4180.6,4180.5,3.99667]
[1758643343416,0.7559,4180.6,4180.5,0.78887]
[1758643343615,1.18616,4180.6,4180.5,0.43027]
[1758643345125,0.7382,4180.1,4180.0,13.99652]
[1758643345326,0.7382,4180.1,4180.0,14.23852]
[1758643346128,0.7382,4180.1,4180.0,14.35052]
[1758643346129,0.5318,4180.1,4180.0,14.35052]
[1758643346932,0.5318,4180.1,4180.0,14.23852]
[1758643347227,0.3265,4180.1,4180.0,14.35052]
[1758643348220,0.3265,4180.1,4180.0,10.3584]
[1758643348221,1.16851,4180.1,4180.0,10.3584]
[1758643348428,1.16851,4180.1,4179.6,0.00690536]
[1758643348429,6.91261328,4180.1,4179.6,0.00690536]
[1758643348725,2.28114,4180.5,4178.4,3.2078]
[1758643348726,0.6615,4178.5,4178.4,3.5662]
[1758643348929,0.6615,4178.5,4177.9,3.47473576]
[1758643348930,0.8679,4178.5,4177.9,3.47473576]
[1758643349126,0.1297,4178.5,4178.3,0.43052]
[1758643349432,0.7382,4178.4,4178.3,0.60972]
[1758643349631,0.7382,4178.4,4178.3,0.60973]
[1758643350032,0.7382,4178.4,4178.3,0.78893]
[1758643351035,0.4117,4178.4,4178.1,0.43055]
[1758643351231,0.7382,4178.2,4178.1,0.60975]
[1758643352433,0.7382,4178.2,4178.1,0.78895]
[1758643353935,0.1297,4178.0,4177.9,0.02393576]
[1758643354234,0.8679,4178.0,4177.9,0.02393576]
[1758643354437,0.5414,4177.5,4177.4,3.387]
[1758643354630,0.8679,4177.5,4177.4,3.387]
[1758643355033,0.5414,4177.5,4177.4,0.1792]
[1758643355332,0.5414,4177.5,4177.4,0.3584]
[1758643355533,0.6615,4177.5,4177.4,0.3584]
[1758643357533,0.8679,4177.5,4177.4,0.3584]
[1758643358029,0.4562,4177.5,4177.4,0.3584]
[1758643358230,0.8679,4177.5,4177.4,0.3584]
[1758643359039,0.8679,4177.5,4177.4,0.78903]
[1758643360532,1.29852,4177.5,4177.4,0.78903]
[1758643360727,0.97202,4177.5,4177.3,0.43064]
[1758643360933,0.7382,4177.3,4177.2,0.43065]
[1758643361236,0.7382,4177.3,4177.2,0.60985]
[1758643361631,1.16885,4177.2,4177.1,0.243]
[1758643362035,0.7382,4177.2,4177.1,0.85286]
[1758643362535,0.7382,4177.2,4177.1,1.03206]
[1758643364345,0.3265,4177.2,4177.1,1.14406]
[1758643364541,0.4562,4177.5,4177.4,0.90103]
[1758643364741,0.6615,4177.5,4177.4,0.78903]
[1758643365952,1.29852,4177.5,4177.1,0.243]
[1758643366145,0.8679,4177.5,4177.4,0.60983]
[1758643368036,0.8679,4177.5,4177.4,0.43063]
[1758643368240,0.8679,4177.5,4177.4,0.60983]
[1758643368542,4.50632,4177.5,4177.0,1.31968]
[1758643368744,0.5318,4177.1,4177.0,0.243]
[1758643368949,0.5318,4177.1,4177.0,0.67367]
[1758643370645,0.5318,4177.1,4177.0,0.43067]
[1758643371035,0.5318,4177.1,4177.0,0.67367]
[1758643371948,0.5318,4177.1,4177.0,3.88147]
[1758643372145,3.3375,4178.0,4177.0,3.88147]
[1758643372146,3.3375,4178.0,4177.9,0.54358]
[1758643372345,3.3375,4178.0,4177.9,0.78658]
[1758643372545,3.5428,4178.0,4177.9,0.78658]
[1758643373353,3.7492,4178.0,4177.9,0.78658]
[1758643373542,4.17977,4178.0,4177.9,0.43058]
[1758643373935,3.7492,4178.0,4177.9,0.43058]
[1758643374138,4.0808,4178.0,4177.9,0.43058]
[1758643374549,4.51137,4178.0,4177.9,0.43058]
[1758643374847,4.0808,4178.0,4177.9,0.43058]
[1758643375239,4.51137,4178.0,4177.9,0.43058]
[1758643375438,4.0808,4178.0,4177.9,0.43058]
[1758643375940,4.0808,4178.0,4177.9,0.54418]
[1758643376643,5.02104482,4178.0,4177.9,0.54418]
[1758643376848,4.59054238,4178.0,4177.9,0.48738]
[1758643378051,5.02111238,4178.0,4177.9,0.43058]
[1758643378346,4.59054238,4178.0,4177.9,0.43058]
[1758643378941,5.02111238,4178.0,4177.9,0.43058]
[1758643379145,4.59054238,4178.0,4177.9,0.43058]
[1758643380151,5.02111238,4178.0,4177.9,0.43058]
[1758643380350,4.59054238,4178.0,4177.9,0.43058]
[1758643380557,4.59054238,4178.0,4177.9,0.54418]
[1758643381052,4.59054238,4178.0,4177.9,0.43058]
[1758643381244,0.63739,4177.8,4177.7,0.4306]
[1758643381550,1.19241,4177.6,4177.5,0.43062]
[1758643381847,1.27154238,4177.6,4177.5,0.48742]
[1758643382954,0.8837,4177.5,4177.4,0.43062]
[1758643383254,5.03186238,4177.5,4177.4,0.43062]
[1758643383753,4.60124238,4177.5,4177.4,0.43062]
[1758643383952,5.03186238,4177.5,4177.4,0.43062]
[1758643384154,4.60124238,4177.5,4177.4,0.43062]
[1758643384557,5.03186238,4177.5,4177.4,0.43062]
[1758643384746,0.86083,4177.4,4177.3,0.43064]
[1758643384953,1.70217238,4177.4,4177.3,0.43064]
[1758643386756,1.27154238,4177.4,4177.3,0.43064]
[1758643386953,0.84134238,4177.4,4177.3,0.54424]
[1758643387257,1.06474238,4177.4,4177.3,0.54424]
[1758643387445,1.27154238,4177.4,4177.3,0.54424]
[1758643387647,1.27154238,4177.4,4177.3,0.43064]
[1758643388153,0.7618,4176.6,4176.5,0.43072]
[1758643388456,0.7618,4176.6,4176.5,0.54432]
[1758643389053,0.555,4176.6,4176.5,0.54432]
[1758643389462,0.7618,4176.6,4176.5,0.54432]
[1758643390348,0.555,4176.6,4176.5,0.54432]
[1758643390851,3.4508,4177.4,4177.3,0.4219]
[1758643390852,3.638,4177.4,4177.3,0.4219]
[1758643391048,3.638,4177.4,4177.3,0.85254]
[1758643391049,4.15093731,4177.4,4177.3,0.85254]
[1758643391259,0.94313731,4177.4,4177.3,1.17114]
[1758643391460,3.6447,4177.9,4177.8,0.64989]
[1758643391755,4.15770892,4177.9,4177.8,0.2193]
[1758643392056,4.58829892,4177.9,4177.7,0.4306]
[1758643392254,0.94990892,4177.8,4177.7,0.4306]
[1758643392653,0.94990892,4177.8,4177.7,0.6499]
[1758643392957,0.749,4178.2,4178.1,1.17746]
[1758643393259,0.51315636,4178.2,4178.1,1.17746]
[1758643393553,0.749,4178.8,4178.7,0.64979]
[1758643393863,1.26177339,4178.8,4178.7,0.85879]
[1758643394248,1.26177339,4178.8,4178.7,1.17739]
[1758643394752,3.2078,4178.9,4178.7,0.85879]
[1758643394949,0.1291,4179.5,4178.9,0.74907]
[1758643394950,0.5265,4179.0,4178.9,0.74907]
[1758643395149,0.5265,4179.0,4178.9,1.17737]
[1758643395359,0.6556,4179.0,4178.9,1.17737]
[1758643396157,0.749,4179.0,4178.9,0.4283]
[1758643396455,0.8781,4179.0,4178.9,0.4283]
[1758643397146,0.8781,4179.0,4178.9,0.2193]
[1758643397350,0.749,4178.6,4178.5,0.2193]
[1758643397659,0.749,4178.6,4178.5,0.64981]
[1758643398460,0.749,4178.6,4178.3,0.243]
[1758643398662,0.4369,4178.4,4178.3,0.243]
[1758643398855,0.749,4178.1,4178.0,0.43056]
[1758643399361,0.749,4178.1,4178.0,0.64986]
[1758643400263,0.749,4177.6,4177.5,0.85892]
[1758643400563,0.749,4177.6,4177.5,1.10192]
[1758643400964,0.749,4177.6,4177.5,1.42052]
[1758643401665,0.5265,4177.6,4177.5,1.42052]
[1758643402469,0.5265,4178.0,4177.9,1.17748]
[1758643402766,0.5265,4178.5,4178.4,1.17742]
[1758643402957,3.9568,4178.9,4178.8,1.17738]
[1758643403157,3.9568,4178.9,4178.8,0.85878]
[1758643403357,3.9568,4178.9,4178.8,1.10178]
[1758643405066,3.9568,4178.9,4178.8,0.85878]
[1758643405262,0.749,4178.9,4178.8,0.43048]
[1758643405455,0.749,4178.9,4178.8,0.67348]
[1758643406356,1.17947,4178.9,4178.8,0.43048]
[1758643406958,0.85739,4178.7,4178.6,0.43049]
[1758643407158,1.18499,4178.7,4178.6,0.67349]
[1758643407461,0.7545,4178.6,4178.5,0.43051]
[1758643408464,1.185,4178.6,4178.5,0.43051]
[1758643408766,0.7545,4178.6,4178.5,0.43051]
[1758643409068,0.7545,4178.6,4178.5,0.63641]
[1758643409256,0.7545,4178.6,4178.5,1.18201]
[1758643409565,0.5364,4178.6,4178.5,1.18201]
[1758643409871,3.5354,4178.9,4178.8,1.18198]
[1758643410060,3.2078,4178.9,4178.8,1.42498]
[1758643410368,3.5354,4178.9,4178.8,1.42498]
[1758643410760,3.7442,4178.9,4178.8,1.42498]
[1758643411570,3.9623,4178.9,4178.8,0.67348]
[1758643411766,3.9623,4178.9,4178.8,0.43048]
[1758643411967,3.9623,4178.9,4178.8,0.67348]
[1758643412171,3.9623,4178.9,4178.8,0.43048]
[1758643412361,4.39277,4178.9,4178.8,0.43048]
[1758643412662,3.9623,4178.9,4178.8,0.43048]
[1758643413066,4.39277,4178.9,4178.8,0.43048]
[1758643413677,3.9623,4178.9,4178.8,0.43048]
[1758643414174,4.39277,4178.9,4178.8,0.43048]
[1758643415470,3.9623,4178.9,4178.8,0.43048]
[1758643415969,4.39277,4178.9,4178.8,0.43048]
[1758643417465,3.9623,4178.9,4178.8,0.43048]
[1758643418070,4.39277,4178.9,4178.8,0.43048]
[1758643421269,4.90416562,4178.9,4178.8,0.43048]
[1758643421469,4.39277,4178.9,4178.8,0.43048]
[1758643421775,3.9623,4178.9,4178.8,0.63638]
[1758643422274,4.47391802,4178.9,4178.8,0.63638]
[1758643422775,0.7545,4178.9,4178.8,0.85798]
[1758643422971,3.9623,4179.4,4179.3,0.85793]
[1758643423178,1.26604366,4179.4,4179.3,0.85793]
[1758643424065,0.4269,4179.7,4179.6,0.2059]
[1758643424265,0.7545,4179.2,4179.1,0.2059]
[1758643424466,0.7545,4179.2,4179.1,0.87935]
[1758643424878,0.7545,4179.2,4179.1,1.10095]
[1758643425080,0.7545,4179.2,4179.1,1.42495]
[1758643425573,0.5364,4179.2,4179.1,1.42495]
[1758643426877,0.7545,4179.2,4179.1,1.42495]
[1758643427578,0.5364,4179.2,4179.1,1.42495]
[1758643428281,0.3276,4179.2,4179.1,1.42495]
[1758643428478,0.5364,4179.2,4179.1,1.42495]
[1758643428975,0.1257,4179.5,4179.1,1.42495]
[1758643429184,0.3345,4179.5,4179.4,0.85792]
[1758643429477,0.5526,4179.5,4179.4,0.85792]
[1758643429676,0.8802,4179.5,4179.4,1.18192]
[1758643430881,0.8802,4179.5,4179.4,1.42492]
[1758643431479,0.8802,4179.5,4179.4,1.18192]
[1758643431677,0.8802,4179.5,4179.4,0.43042]
[1758643431983,0.8802,4179.5,4179.4,0.67342]
[1758643433284,0.8802,4179.5,4179.4,0.43042]
[1758643433476,0.8802,4179.5,4179.4,0.63632]
[1758643433871,0.3276,4179.5,4179.4,1.17072]
[1758643434079,0.5482,4179.5,4179.4,1.17072]
[1758643434281,0.6732,4179.5,4179.4,1.17072]
[1758643436985,0.8799,4179.5,4179.4,0.84802]
[1758643437682,0.8799,4179.5,4179.4,1.09102]
[1758643437986,0.8799,4179.5,4179.4,0.87932]
[1758643440185,0.8799,4179.5,4179.4,0.67342]
[1758643440389,0.75242,4179.4,4179.3,0.43042]
[1758643440685,0.7493,4179.4,4179.3,0.43042]
[1758643441385,0.7493,4179.4,4179.3,0.64542]
[1758643441586,0.7493,4179.4,4179.3,0.43042]
[1758643443890,0.7493,4179.4,4179.3,0.64542]
[1758643444391,0.7493,4179.4,4179.3,0.43042]
[1758643444783,0.7493,4179.4,4179.3,0.64542]
[1758643446090,0.125,4179.5,4179.4,0.43042]
[1758643446280,0.322,4179.7,4179.6,1.1798]
[1758643446487,0.5426,4179.7,4179.6,1.4228]
[1758643446988,3.2078,4180.2,4180.1,1.17975]
[1758643447188,3.2078,4180.2,4180.1,1.42275]
[1758643447387,3.6351,4180.8,4180.7,1.17969]
[1758643448285,4.14620937,4180.8,4180.7,1.17969]
[1758643448479,3.6351,4180.8,4180.7,1.17969]
[1758643448879,3.9571,4180.8,4180.7,1.17969]
[1758643449391,0.43024,4181.3,4180.7,1.17969]
[1758643449392,0.5426,4181.1,4181.0,1.31116]
[1758643449692,0.2206,4181.1,4181.0,1.31116]
[1758643450093,0.7493,4181.1,4181.0,0.96796]
[1758643450997,0.7493,4181.1,4181.0,1.17966]
[1758643452198,0.7493,4181.1,4181.0,0.96796]
[1758643452496,0.7493,4181.1,4180.5,0.1315]
[1758643452497,0.7649,4180.6,4180.5,1.11311]
[1758643452696,0.4362,4180.6,4180.5,1.56201]
[1758643452997,0.7649,4180.9,4180.8,1.18848]
[1758643453790,0.4362,4180.9,4180.8,1.18848]
[1758643454093,0.7649,4180.9,4180.8,1.18848]
[1758643454999,0.2123,4180.9,4180.8,1.18848]
[1758643455194,3.7488,4181.3,4181.2,1.18844]
[1758643455497,3.9727,4181.3,4181.2,0.98154]
[1758643455696,4.48331703,4181.3,4181.2,0.98154]
[1758643456400,3.9727,4181.3,4181.2,0.98154]
[1758643457498,3.9727,4181.3,4181.2,1.18844]
[1758643457698,0.3287,4181.7,4181.3,1.07556]
[1758643457900,3.7604,4181.4,4181.3,0.64943]
[1758643458099,0.7649,4180.9,4180.8,1.22458]
[1758643458299,0.7649,4180.9,4180.8,1.43148]
[1758643458804,0.4362,4180.9,4180.8,1.43148]
[1758643459303,0.2123,4180.9,4180.8,1.43148]
[1758643459691,0.7649,4180.9,4180.8,1.18848]
[1758643459893,0.7649,4180.9,4180.8,0.98158]
[1758643460093,0.7649,4180.9,4180.8,1.22458]
[1758643460505,4.40297,4180.9,4180.8,1.22458]
[1758643461203,1.19521,4180.5,4180.3,0.43033]
[1758643461399,0.7649,4179.9,4179.8,0.98168]
[1758643461798,0.7649,4179.9,4179.6,0.4304]
[1758643461799,3.9727,4179.9,4179.6,0.4304]
[1758643462109,0.7649,4179.7,4179.6,0.4304]
[1758643462413,0.7649,4179.7,4179.6,1.1886]
[1758643462704,0.7649,4179.7,4179.6,0.7582]
[1758643463401,3.2078,4179.9,4179.7,0.43039]
[1758643463606,3.4262,4180.6,4180.5,1.31121]
[1758643464402,0.2184,4180.6,4180.5,1.31121]
[1758643469107,0.736,4180.6,4180.4,0.43032]
[1758643469309,0.4242,4180.6,4180.5,0.5316]
[1758643469911,0.4242,4180.6,4180.5,0.96191]
[1758643469912,0.736,4180.6,4180.5,0.96191]
[1758643470108,0.736,4180.6,4180.5,1.18401]
[1758643470511,0.736,4180.6,4180.5,1.31121]
[1758643470711,0.736,4180.6,4180.5,1.18401]
[1758643471008,3.9438,4180.6,4180.5,0.96191]
[1758643471497,3.9438,4180.6,4180.5,1.18401]
[1758643471703,4.3741,4180.6,4180.5,1.18401]
[1758643472913,4.3741,4180.6,4180.5,0.5316]
[1758643473408,4.3741,4180.6,4180.1,0.243]
[1758643473409,0.85453,4180.3,4180.2,0.43033]
[1758643473600,1.16633,4180.3,4180.2,0.43033]
[1758643473809,1.16633,4180.3,4178.6,40.89976115]
[1758643473810,0.85455,4180.2,4180.1,0.43035]
[1758643474011,1.16635,4180.2,4180.1,0.43035]
[1758643474706,1.16635,4180.2,4180.1,0.5316]
[1758643475011,0.3118,4179.7,4179.6,0.3191]
[1758643475216,4.37419,4179.7,4179.6,0.7495]
[1758643475410,4.37419,4179.7,4179.6,0.962]
[1758643476008,3.9438,4179.7,4179.6,0.962]
[1758643476203,3.632,4179.7,4179.6,1.1841]
[1758643476703,3.4262,4179.7,4179.6,1.1841]
[1758643476903,3.632,4179.7,4179.6,1.1841]
[1758643477214,4.37419,4179.7,4179.6,1.1841]
[1758643477711,4.37419,4179.7,4179.6,0.962]
[1758643477913,3.9438,4179.7,4179.6,1.1841]
[1758643478303,3.632,4179.7,4179.6,1.1841]
[1758643478506,0.2184,4179.7,4179.6,1.1841]
[1758643478706,3.2078,4180.7,4180.6,0.4303]
[1758643478707,3.9438,4180.7,4180.6,0.4303]
[1758643479015,4.14354729,4180.7,4180.6,0.8649]
[1758643479214,4.14354729,4180.7,4180.6,1.184]
[1758643479717,4.57383729,4180.7,4180.6,1.184]
[1758643480102,4.14354729,4180.7,4180.6,1.184]
[1758643480301,3.632,4180.7,4180.6,1.184]
[1758643480512,3.4262,4180.7,4180.6,1.184]
[1758643482119,3.85649,4180.7,4180.6,1.184]
[1758643482415,3.4262,4180.7,4180.6,1.184]
[1758643483616,3.2078,4180.7,4180.6,1.184]
[1758643485119,3.9438,4180.7,4180.6,1.427]
[1758643485415,3.632,4180.7,4180.6,1.427]
[1758643486009,3.9438,4180.7,4180.6,1.427]
[1758643486420,3.2078,4181.2,4181.1,1.18395]
[1758643486712,3.4262,4181.7,4181.6,1.1839]
[1758643488017,3.9438,4181.7,4181.6,1.1839]
[1758643488220,3.9438,4181.7,4181.6,1.4269]
[1758643488519,3.4262,4181.7,4181.6,1.4269]
[1758643488718,0.2184,4182.1,4182.0,1.31105]
[1758643488910,3.2078,4182.2,4182.1,0.7537]
[1758643489107,3.632,4182.7,4182.6,0.86469]
[1758643489313,3.632,4182.7,4182.6,1.18379]
[1758643489510,3.632,4182.7,4182.6,0.7537]
[1758643489712,0.4242,4182.5,4182.4,0.243]
[1758643490021,0.736,4182.5,4182.4,0.243]
[1758643490219,0.736,4182.5,4182.4,0.5621]
[1758643490416,0.736,4181.9,4181.8,0.5316]
[1758643490714,0.736,4181.9,4181.7,0.43018]
[1758643490715,1.16617,4181.9,4181.7,0.243]
[1758643491112,0.736,4181.8,4181.7,0.243]
[1758643491916,0.736,4181.5,4181.4,0.5316]
[1758643492120,0.736,4181.5,4181.4,0.7746]
[1758643492612,0.4242,4181.5,4181.4,0.9967]
[1758643492919,0.4242,4182.3,4182.2,0.7537]
[1758643493616,0.7573,4182.3,4182.2,0.5316]
[1758643495915,0.43012,4182.4,4181.7,0.7625]
[1758643495916,0.98688,4181.8,4181.7,0.7625]
[1758643496121,1.20338,4181.8,4181.5,0.1272]
[1758643496419,1.2034,4181.6,4181.5,0.5405]
[1758643496922,1.2034,4181.6,4181.4,0.43021]
[1758643497226,3.981,4181.5,4181.4,0.43021]
[1758643497522,3.4243,4181.5,4181.4,1.19271]
[1758643497908,3.6479,4181.5,4181.4,1.19271]
[1758643498107,3.981,4181.5,4181.4,1.19271]
[1758643500623,3.981,4181.5,4181.4,0.97071]
[1758643501223,0.7732,4180.6,4180.5,0.2108]
[1758643501425,0.7732,4180.6,4180.5,0.5405]
[1758643501615,0.7732,4180.6,4180.5,0.97081]
[1758643501817,0.7732,4180.6,4180.5,0.7835]
[1758643502110,0.7732,4180.6,4180.5,0.5405]
[1758643502712,0.43031,4180.5,4180.3,0.243]
[1758643503021,0.7732,4180.3,4180.2,1.21383]
[1758643503226,0.7732,4180.3,4180.2,0.97083]
[1758643503731,0.7732,4180.3,4180.2,1.19283]
[1758643505022,0.4401,4180.3,4180.2,1.19283]
[1758643505224,0.7732,4180.3,4180.2,0.5405]
[1758643505523,3.2078,4180.7,4180.1,0.97085]
[1758643505524,0.7732,4180.2,4180.1,0.97085]
[1758643506616,0.7732,4180.2,4180.1,1.19285]
[1758643506818,1.20354,4180.2,4180.1,1.19285]
[1758643507118,0.7732,4180.2,4180.1,1.19285]
[1758643507510,0.5567,4179.7,4179.6,1.1929]
[1758643507719,0.7732,4179.7,4179.6,1.1929]
[1758643508319,0.4401,4179.7,4179.6,1.1929]
[1758643509827,0.87049,4179.7,4179.6,1.1929]
[1758643510425,0.87049,4179.7,4179.6,0.7625]
[1758643510625,0.87049,4179.7,4179.6,1.1929]
[1758643510818,1.20359,4179.7,4179.6,0.7625]